[Event "Serbian League Women 2024"]
[Site "Bajina Basta"]
[Date "2024.10.01"]
[Round "5.11"]
[White "Maksimovic, Suzana"]
[Black "Mihailova, Alina"]
[Result "0-1"]
[ECO "D35"]
[WhiteElo "2052"]
[BlackElo "1969"]
[Annotator "RC"]
[PlyCount "122"]
[EventDate "2024.09.26"]
[EventType "team-tourn"]
[EventCountry "SRB"]
[SourceTitle "playchess.com"]
[Source "ChessBase"]
[SourceQuality "1"]
[TimeControl "40/5400+30:1800+30"]

1. d4 {[%emt 0:00:03]} d5 {[%emt 0:00:07]} 2. c4 {[%emt 0:00:20]} e6 {[%emt 0:00:11]} 3. Nc3 {[%emt 0:00:16]} Nf6 {[%emt 0:00:07]} 4. cxd5 {[%emt 0:00:43]} exd5 {[%emt 0:00:05]} 5. Bg5 {[%emt 0:00:17]} Be7 {[%emt 0:00:08]} 6. e3 {[%emt 0:00:39]} O-O {[%emt 0:00:21]} 7. Bd3 {[%emt 0:00:24]} Re8 {[%emt 0:00:11]} 8. Nge2 {[%emt 0:02:13]} c6 {[%emt 0:00:17]} 9. f3 {[%emt 0:07:32]} a5 {[%emt 0:08:56]} 10. O-O {[%emt 0:01:03]} h6 {[%emt 0:00:07]} 11. Bh4 {[%emt 0:00:12]} b5 {[%emt 0:00:25]} 12. Rc1 {[%emt 0:02:09]} Nbd7 {[%emt 0:07:29]} 13. Kh1 {[%emt 0:02:38]} Nb6 {[%emt 0:07:38]} 14. b3 {[%emt 0:00:08]} Bd7 {[%emt 0:17:24]} 15. Bf2 {[%emt 0:14:48]} a4 {[%emt 0:07:19]} 16. e4 {[%emt 0:04:51]} dxe4 {[%emt 0:09:06]} 17. fxe4 {[%emt 0:00:08]} Ba3 {[%emt 0:00:35]} 18. e5 {[%emt 0:13:51]} Bxc1 {[%emt 0:18:27]} 19. Qxc1 {[%emt 0:20:38]} Nfd5 {[%emt 0:04:38]} 20. Ne4 {[%emt 0:00:15]} axb3 {[%emt 0:01:50]} 21. axb3 {[%emt 0:00:03]} Qe7 {[%emt 0:06:27]} 22. Bb1 {[%emt 0:09:27]} Ra1 {[%emt 0:07:52]} 23. Nd6 {[%emt 0:00:49]} Rea8 {[%emt 0:00:50]} 24. Be1 {[%emt 0:03:57]} Be6 {[%emt 0:00:51]} 25. Ng3 {[%emt 0:02:19]} Qg5 {[%emt 0:00:47]} 26. Bd2 {[%emt 0:00:21]} Rxb1 {[%emt 0:00:25]} 27. Bxg5 {[%emt 0:00:29]} Rxc1 {[%emt 0:00:04]} 28. Bxc1 {[%emt 0:00:05]} Nb4 {[%emt 0:00:45]} 29. Ngf5 {[%emt 0:06:51]} Bxb3 {[%emt 0:00:29]} 30. Kg1 {[%emt 0:02:46]} Ra7 {[%emt 0:00:34]} 31. Bd2 {[%emt 0:01:36]} Nc2 {[%emt 0:00:51]} 32. Rf3 {[%emt 0:01:56]} Be6 {[%emt 0:00:37]} 33. Rg3 {[%emt 0:00:36]} Ra1+ {[%emt 0:00:22]} 34. Kf2 {[%emt 0:00:06]} g6 {[%emt 0:00:30]} 35. Nxh6+ {[%emt 0:01:22]} Kf8 {[%emt 0:00:19]} 36. Nhxf7 {[%emt 0:00:30]} Nxd4 {[%emt 0:00:44]} 37. Ng5 {[%emt 0:00:44]} Ra2 {[%emt 0:00:34]} 38. Nxe6+ {[%emt 0:01:01]} Nxe6 {[%emt 0:00:02]} 39. Ke1 {[%emt 0:00:57]} Ra1+ {[%emt 0:00:26]} 40. Ke2 {[%emt 0:00:14]} Nd5 {[%emt 0:00:44]} 41. Rg4 {[%emt 0:12:29]} Ra2 {[%emt 0:08:38]} 42. Kd1 {[%emt 0:01:44]} b4 {[%emt 0:09:37]} 43. Rxg6 {[%emt 0:09:32]} Ke7 {[%emt 0:04:10]} 44. h4 {[%emt 0:04:55]} b3 {[%emt 0:01:20]} 45. Nc4 {[%emt 0:02:04]} Ra1+ {[%emt 0:05:35]} 46. Bc1 {[%emt 0:00:06]} Ndf4 {[%emt 0:00:27]} 47. Rg3 {[%emt 0:00:31]} Ne2 {[%emt 0:02:39]} 48. Kxe2 {[%emt 0:00:17]} Rxc1 {[%emt 0:00:06]} 49. Rg4 {[%emt 0:01:48]} b2 {[%emt 0:01:18]} 50. Nxb2 {[%emt 0:00:02]} Rc2+ {[%emt 0:00:04]} 51. Kf3 {[%emt 0:02:07]} Rxb2 {[%emt 0:00:05]} 52. Ra4 {[%emt 0:00:14]} c5 {[%emt 0:01:07]} 53. Ra7+ {[%emt 0:00:40]} Kf8 {[%emt 0:00:08]} 54. Ke4 {[%emt 0:01:02]} Rd2 {[%emt 0:00:25]} 55. h5 {[%emt 0:00:36]} Rd4+ {[%emt 0:01:18]} 56. Kf5 {[%emt 0:00:23]} Ng7+ {[%emt 0:00:14]} 57. Kg5 {[%emt 0:00:22]} Kg8 {[%emt 0:01:34]} 58. h6 {[%emt 0:00:27]} Ne6+ {[%emt 0:00:13]} 59. Kf6 {[%emt 0:00:12]} Nf8 {[%emt 0:00:22]} 60. Rc7 {[%emt 0:01:05]} Rf4+ {[%emt 0:00:25]} 61. Ke7 {[%emt 0:00:34]} Rf7+ {[%emt 0:00:33]} 0-1

[Event "Serbian League Women 2024"]
[Site "Bajina Basta"]
[Date "2024.10.01"]
[Round "5.13"]
[White "Bivol, Alina"]
[Black "Maltsevskaya, Aleksandra"]
[Result "1/2-1/2"]
[ECO "C83"]
[WhiteElo "2345"]
[BlackElo "2404"]
[Annotator "RC"]
[PlyCount "22"]
[EventDate "2024.09.26"]
[EventType "team-tourn"]
[EventCountry "SRB"]
[SourceTitle "playchess.com"]
[Source "ChessBase"]
[SourceQuality "1"]
[TimeControl "40/5400+30:1800+30"]

1. e4 {[%emt 0:00:02]} e5 {[%emt 0:00:06]} 2. Nf3 {[%emt 0:00:24]} Nc6 {[%emt 0:00:07]} 3. Bb5 {[%emt 0:01:01]} a6 {[%emt 0:00:06]} 4. Ba4 {[%emt 0:00:03]} Nf6 {[%emt 0:00:07]} 5. O-O {[%emt 0:01:10]} Nxe4 {[%emt 0:00:14]} 6. d4 {[%emt 0:04:10]} b5 {[%emt 0:00:06]} 7. Bb3 {[%emt 0:00:15]} d5 {[%emt 0:00:07]} 8. dxe5 {[%emt 0:01:06]} Be6 {[%emt 0:00:06]} 9. c3 {[%emt 0:01:21]} Be7 {[%emt 0:00:24]} 10. Nbd2 {[%emt 0:05:46]} Nc5 {[%emt 0:00:10]} 11. Bc2 {[%emt 0:00:18]} d4 {[%emt 0:21:15]} 1/2-1/2

[Event "Serbian League Women 2024"]
[Site "Bajina Basta"]
[Date "2024.10.01"]
[Round "5.14"]
[White "Prudnikova, Svetlana"]
[Black "Velikic, Adela"]
[Result "1/2-1/2"]
[ECO "E04"]
[WhiteElo "2117"]
[BlackElo "2260"]
[Annotator "RC"]
[PlyCount "51"]
[EventDate "2024.09.26"]
[EventType "team-tourn"]
[EventCountry "SRB"]
[SourceTitle "playchess.com"]
[Source "ChessBase"]
[SourceQuality "1"]
[TimeControl "40/5400+30:1800+30"]

1. d4 {[%emt 0:00:01]} d5 {[%emt 0:00:08]} 2. c4 {[%emt 0:00:11]} e6 {[%emt 0:00:06]} 3. Nf3 {[%emt 0:00:27]} Nd7 {[%emt 0:00:10]} 4. Qc2 {[%emt 0:02:21]} Ngf6 {[%emt 0:06:53]} 5. g3 {[%emt 0:00:23]} Bb4+ {[%emt 0:18:00]} 6. Bd2 {[%emt 0:00:11]} Be7 {[%emt 0:00:57]} 7. Bg2 {[%emt 0:00:14]} O-O {[%emt 0:01:42]} 8. O-O {[%emt 0:00:06]} dxc4 {[%emt 0:06:04]} 9. Qxc4 {[%emt 0:00:28]} a6 {[%emt 0:00:57]} 10. Rc1 {[%emt 0:21:14]} c5 {[%emt 0:05:20]} 11. Qc2 {[%emt 0:00:41]} cxd4 {[%emt 0:11:38]} 12. Nxd4 {[%emt 0:00:06]} Nc5 {[%emt 0:03:06]} 13. Nb3 {[%emt 0:08:21]} Nxb3 {[%emt 0:02:24]} 14. Qxb3 {[%emt 0:00:02]} a5 {[%emt 0:09:48]} 15. Bf4 {[%emt 0:13:56]} a4 {[%emt 0:03:52]} 16. Qc2 {[%emt 0:09:26]} Nd5 {[%emt 0:01:31]} 17. Rd1 {[%emt 0:02:10]} Qa5 {[%emt 0:04:59]} 18. Bd2 {[%emt 0:07:13]} Qa6 {[%emt 0:02:51]} 19. Nc3 {[%emt 0:06:56]} Nb4 {[%emt 0:00:49]} 20. Qc1 {[%emt 0:07:54]} Nc6 {[%emt 0:02:42]} 21. Bg5 {[%emt 0:02:28]} f6 {[%emt 0:02:54]} 22. Be3 {[%emt 0:00:18]} Ne5 {[%emt 0:02:53]} 23. Bd4 {[%emt 0:09:02]} Nc6 {[%emt 0:00:34]} 24. Be3 {[%emt 0:00:02]} Ne5 {[%emt 0:03:22]} 25. Bd4 {[%emt 0:00:04]} Nc6 {[%emt 0:05:07]} 26. Be3 {[%emt 0:00:14]} 1/2-1/2

[Event "Serbian League Women 2024"]
[Site "Bajina Basta"]
[Date "2024.10.01"]
[Round "5.15"]
[White "Zhurova, Anna"]
[Black "Drljevic, Ljilja"]
[Result "1-0"]
[ECO "B06"]
[WhiteElo "2199"]
[BlackElo "2102"]
[Annotator "RC"]
[PlyCount "129"]
[EventDate "2024.09.26"]
[EventType "team-tourn"]
[EventCountry "SRB"]
[SourceTitle "playchess.com"]
[Source "ChessBase"]
[SourceQuality "1"]
[TimeControl "40/5400+30:1800+30"]

1. e4 {[%emt 0:00:02]} g6 {[%emt 0:00:03]} 2. d4 {[%emt 0:00:19]} Bg7 {[%emt 0:00:05]} 3. Nc3 {[%emt 0:00:21]} d6 {[%emt 0:00:10]} 4. Be3 {[%emt 0:00:35]} a6 {[%emt 0:00:10]} 5. Qd2 {[%emt 0:00:31]} b5 {[%emt 0:00:20]} 6. h4 {[%emt 0:00:32]} Nf6 {[%emt 0:02:18]} 7. f3 {[%emt 0:00:38]} h5 {[%emt 0:01:22]} 8. O-O-O {[%emt 0:01:33]} b4 {[%emt 0:08:08]} 9. Nce2 {[%emt 0:00:28]} a5 {[%emt 0:01:56]} 10. Nf4 {[%emt 0:01:11]} Bb7 {[%emt 0:04:15]} 11. e5 {[%emt 0:06:10]} dxe5 {[%emt 0:15:20]} 12. dxe5 {[%emt 0:00:33]} Qxd2+ {[%emt 0:00:11]} 13. Rxd2 {[%emt 0:00:10]} Nfd7 {[%emt 0:00:15]} 14. e6 {[%emt 0:00:22]} Ne5 {[%emt 0:00:10]} 15. exf7+ {[%emt 0:01:27]} Kxf7 {[%emt 0:00:12]} 16. Ngh3 {[%emt 0:10:29]} Bf6 {[%emt 0:02:32]} 17. Ng5+ {[%emt 0:02:36]} Bxg5 {[%emt 0:00:08]} 18. hxg5 {[%emt 0:00:02]} a4 {[%emt 0:10:33]} 19. Rh4 {[%emt 0:14:58]} b3 {[%emt 0:07:54]} 20. a3 {[%emt 0:00:16]} bxc2 {[%emt 0:09:58]} 21. Nd3 {[%emt 0:03:29]} Ned7 {[%emt 0:03:08]} 22. Nb4 {[%emt 0:07:37]} Rc8 {[%emt 0:06:21]} 23. Bc4+ {[%emt 0:03:25]} e6 {[%emt 0:01:07]} 24. Rf4+ {[%emt 0:07:32]} Ke7 {[%emt 0:00:42]} 25. Bd4 {[%emt 0:04:41]} Ra5 {[%emt 0:05:12]} 26. Re2 {[%emt 0:03:03]} Nf8 {[%emt 0:01:52]} 27. Bf6+ {[%emt 0:01:52]} Kf7 {[%emt 0:00:45]} 28. Nd3 {[%emt 0:04:17]} Nbd7 {[%emt 0:01:20]} 29. g4 {[%emt 0:00:26]} hxg4 {[%emt 0:01:29]} 30. fxg4 {[%emt 0:00:06]} Nxf6 {[%emt 0:02:05]} 31. Ne5+ {[%emt 0:01:32]} Ke7 {[%emt 0:01:35]} 32. gxf6+ {[%emt 0:01:02]} Kd6 {[%emt 0:00:20]} 33. Nf7+ {[%emt 0:03:27]} Kd7 {[%emt 0:00:27]} 34. Rd4+ {[%emt 0:04:49]} Ke8 {[%emt 0:02:41]} 35. Ne5 {[%emt 0:01:24]} Rc5 {[%emt 0:02:26]} 36. Bd3 {[%emt 0:03:11]} g5 {[%emt 0:05:47]} 37. Ng6 {[%emt 0:05:44]} Bd5 {[%emt 0:02:34]} 38. Rh2 {[%emt 0:03:08]} Kd7 {[%emt 0:02:59]} 39. Ne5+ {[%emt 0:00:24]} Kd6 {[%emt 0:00:25]} 40. Nf7+ {[%emt 0:00:22]} Kc6 {[%emt 0:00:39]} 41. Nxg5 {[%emt 0:31:02]} Bb3 {[%emt 0:06:27]} 42. Ne4 {[%emt 0:00:00]} Rd5 {[%emt 0:00:56]} 43. Rxd5 {[%emt 0:00:00]} exd5 {[%emt 0:03:04]} 44. Nc3 {[%emt 0:00:00]} d4 {[%emt 0:12:38]} 45. Ne2 {[%emt 0:00:00]} Ne6 {[%emt 0:00:54]} 46. g5 {[%emt 0:00:00]} Nxg5 {[%emt 0:01:10]} 47. Nxd4+ {[%emt 0:00:00]} Kd6 {[%emt 0:02:08]} 48. Rg2 {[%emt 0:00:00]} Rh8 {[%emt 0:04:57]} 49. Bxc2 {[%emt 0:00:00]} Bxc2 {[%emt 0:00:30]} 50. Kxc2 {[%emt 0:00:00]} Ne4 {[%emt 0:00:14]} 51. f7 {[%emt 0:00:00]} Rf8 {[%emt 0:00:57]} 52. Nf5+ {[%emt 0:00:00]} Ke6 {[%emt 0:02:05]} 53. Nh6 {[%emt 0:00:00]} Nd6 {[%emt 0:00:30]} 54. Rf2 {[%emt 0:01:07]} Ke7 {[%emt 0:00:30]} 55. Nf5+ {[%emt 0:01:17]} Ke6 {[%emt 0:00:28]} 56. Nxd6 {[%emt 0:00:25]} cxd6 {[%emt 0:00:19]} 57. Kc3 {[%emt 0:00:09]} d5 {[%emt 0:00:46]} 58. Kd4 {[%emt 0:00:16]} Kd6 {[%emt 0:00:14]} 59. Rf6+ {[%emt 0:00:23]} Ke7 {[%emt 0:00:02]} 60. Ke5 {[%emt 0:00:15]} d4 {[%emt 0:00:18]} 61. Re6+ {[%emt 0:00:29]} Kd7 {[%emt 0:00:20]} 62. Kf6 {[%emt 0:00:22]} Rd8 {[%emt 0:01:05]} 63. Re7+ {[%emt 0:00:13]} Kc6 {[%emt 0:00:19]} 64. Re8 {[%emt 0:00:03]} Rd6+ {[%emt 0:00:20]} 65. Re6 {[%emt 0:00:06]} 1-0

[Event "Serbian League Women 2024"]
[Site "Bajina Basta"]
[Date "2024.10.01"]
[Round "5.16"]
[White "Mijic, Sara"]
[Black "Srdanovic, Jovana"]
[Result "1/2-1/2"]
[ECO "B17"]
[WhiteElo "1993"]
[BlackElo "2142"]
[Annotator "RC"]
[PlyCount "28"]
[EventDate "2024.09.26"]
[EventType "team-tourn"]
[EventCountry "SRB"]
[SourceTitle "playchess.com"]
[Source "ChessBase"]
[SourceQuality "1"]
[TimeControl "40/5400+30:1800+30"]

1. e4 {[%emt 0:00:08]} c6 {[%emt 0:00:07]} 2. d4 {[%emt 0:00:35]} d5 {[%emt 0:00:07]} 3. Nd2 {[%emt 0:00:46]} dxe4 {[%emt 0:00:10]} 4. Nxe4 {[%emt 0:00:07]} Nd7 {[%emt 0:00:14]} 5. Ng5 {[%emt 0:01:26]} Ngf6 {[%emt 0:01:01]} 6. Bd3 {[%emt 0:02:44]} e6 {[%emt 0:01:25]} 7. N1f3 {[%emt 0:02:04]} Bd6 {[%emt 0:10:46]} 8. Qe2 {[%emt 0:09:37]} Qe7 {[%emt 0:12:14]} 9. Ne5 {[%emt 0:04:13]} O-O {[%emt 0:03:39]} 10. Bc4 {[%emt 0:23:09]} Nb6 {[%emt 0:03:42]} 11. Bd3 {[%emt 0:00:26]} Nbd7 {[%emt 0:20:56]} 12. Bf4 {[%emt 0:16:36]} h6 {[%emt 0:04:27]} 13. h4 {[%emt 0:09:54]} Bxe5 {[%emt 0:05:46]} 14. Bxe5 {[%emt 0:03:40]} a5 {[%emt 0:06:17]} 1/2-1/2

[Event "Serbian League Women 2024"]
[Site "Bajina Basta"]
[Date "2024.10.01"]
[Round "5.17"]
[White "Aydin, Gulenay"]
[Black "Unuk, Laura"]
[Result "1/2-1/2"]
[ECO "C47"]
[WhiteElo "2202"]
[BlackElo "2316"]
[Annotator "RC"]
[PlyCount "45"]
[EventDate "2024.09.26"]
[EventType "team-tourn"]
[EventCountry "SRB"]
[SourceTitle "playchess.com"]
[Source "ChessBase"]
[SourceQuality "1"]
[TimeControl "40/5400+30:1800+30"]

1. e4 {[%emt 0:00:05]} e5 {[%emt 0:00:28]} 2. Nf3 {[%emt 0:00:07]} Nc6 {[%emt 0:00:04]} 3. Nc3 {[%emt 0:00:05]} Nf6 {[%emt 0:00:04]} 4. d4 {[%emt 0:00:05]} Bb4 {[%emt 0:01:07]} 5. Nxe5 {[%emt 0:00:35]} Qe7 {[%emt 0:00:06]} 6. Qd3 {[%emt 0:00:53]} Nxe5 {[%emt 0:01:04]} 7. dxe5 {[%emt 0:00:05]} Qxe5 {[%emt 0:00:04]} 8. Bd2 {[%emt 0:00:07]} d6 {[%emt 0:00:09]} 9. f4 {[%emt 0:27:19]} Qc5 {[%emt 0:22:47]} 10. a3 {[%emt 0:05:30]} Bxc3 {[%emt 0:02:11]} 11. Bxc3 {[%emt 0:00:03]} Bd7 {[%emt 0:00:58]} 12. O-O-O {[%emt 0:15:26]} O-O-O {[%emt 0:02:37]} 13. Bd4 {[%emt 0:04:44]} Qc6 {[%emt 0:12:43]} 14. Bxf6 {[%emt 0:01:06]} gxf6 {[%emt 0:00:04]} 15. Qd4 {[%emt 0:00:49]} Qb6 {[%emt 0:21:29]} 16. Qxb6 {[%emt 0:07:40]} axb6 {[%emt 0:02:10]} 17. Bc4 {[%emt 0:00:07]} Be6 {[%emt 0:00:15]} 18. Bxe6+ {[%emt 0:06:32]} fxe6 {[%emt 0:00:06]} 19. g4 {[%emt 0:06:32]} Rdg8 {[%emt 0:04:08]} 20. Rhg1 {[%emt 0:00:28]} Rg7 {[%emt 0:00:12]} 21. Rg3 {[%emt 0:02:28]} Rhg8 {[%emt 0:14:56]} 22. Rdg1 {[%emt 0:00:28]} e5 {[%emt 0:06:49]} 23. f5 {[%emt 0:07:40]} 1/2-1/2

[Event "Serbian League Women 2024"]
[Site "Bajina Basta"]
[Date "2024.10.01"]
[Round "5.18"]
[White "Lach, Aleksandra"]
[Black "Yildiz, Elif Zeren"]
[Result "1/2-1/2"]
[ECO "A45"]
[WhiteElo "2278"]
[BlackElo "1934"]
[Annotator "RC"]
[PlyCount "54"]
[EventDate "2024.09.26"]
[EventType "team-tourn"]
[EventCountry "SRB"]
[SourceTitle "playchess.com"]
[Source "ChessBase"]
[SourceQuality "1"]
[TimeControl "40/5400+30:1800+30"]

1. d4 {[%emt 0:00:28]} Nf6 {[%emt 0:00:05]} 2. Bg5 {[%emt 0:00:17]} c5 {[%emt 0:00:06]} 3. Bxf6 {[%emt 0:00:56]} exf6 {[%emt 0:00:02]} 4. dxc5 {[%emt 0:07:55]} Bxc5 {[%emt 0:00:06]} 5. e3 {[%emt 0:00:36]} d5 {[%emt 0:00:17]} 6. c3 {[%emt 0:12:05]} Nc6 {[%emt 0:03:46]} 7. Nd2 {[%emt 0:07:53]} O-O {[%emt 0:08:21]} 8. Nb3 {[%emt 0:07:47]} Bb6 {[%emt 0:00:42]} 9. Nf3 {[%emt 0:07:54]} Be6 {[%emt 0:03:20]} 10. Be2 {[%emt 0:04:02]} Rc8 {[%emt 0:09:12]} 11. O-O {[%emt 0:06:22]} Qe7 {[%emt 0:00:38]} 12. Nbd4 {[%emt 0:07:26]} g6 {[%emt 0:09:02]} 13. Qd2 {[%emt 0:05:16]} Ne5 {[%emt 0:05:11]} 14. Rad1 {[%emt 0:01:21]} Rfd8 {[%emt 0:03:26]} 15. Rfe1 {[%emt 0:04:14]} Bc7 {[%emt 0:05:47]} 16. g3 {[%emt 0:07:11]} a6 {[%emt 0:14:32]} 17. Bf1 {[%emt 0:01:30]} Nc4 {[%emt 0:01:05]} 18. Qc1 {[%emt 0:00:09]} Nd6 {[%emt 0:00:37]} 19. Bg2 {[%emt 0:00:58]} Ne4 {[%emt 0:01:28]} 20. Nxe6 {[%emt 0:02:23]} fxe6 {[%emt 0:02:07]} 21. Nd4 {[%emt 0:00:05]} f5 {[%emt 0:00:32]} 22. Qc2 {[%emt 0:01:59]} Be5 {[%emt 0:06:04]} 23. Qb3 {[%emt 0:02:50]} Nc5 {[%emt 0:00:55]} 24. Qc2 {[%emt 0:00:24]} Ne4 {[%emt 0:00:26]} 25. Qb3 {[%emt 0:01:02]} Nc5 {[%emt 0:00:15]} 26. Qc2 {[%emt 0:00:51]} Ne4 {[%emt 0:10:24]} 27. Qb3 {[%emt 0:00:24]} Nc5 {[%emt 0:02:12]} 1/2-1/2

[Event "Serbian League Women 2024"]
[Site "Bajina Basta"]
[Date "2024.10.01"]
[Round "5.19"]
[White "Vujcic, Milena"]
[Black "Bojicic, Andjela"]
[Result "0-1"]
[ECO "B06"]
[WhiteElo "2076"]
[BlackElo "2071"]
[Annotator "RC"]
[PlyCount "114"]
[EventDate "2024.09.26"]
[EventType "team-tourn"]
[EventCountry "SRB"]
[SourceTitle "playchess.com"]
[Source "ChessBase"]
[SourceQuality "1"]
[TimeControl "40/5400+30:1800+30"]

1. e4 {[%emt 0:00:03]} g6 {[%emt 0:00:05]} 2. d4 {[%emt 0:00:05]} Bg7 {[%emt 0:00:03]} 3. Nc3 {[%emt 0:00:08]} d6 {[%emt 0:00:05]} 4. Be3 {[%emt 0:00:07]} a6 {[%emt 0:00:07]} 5. h4 {[%emt 0:00:16]} h5 {[%emt 0:00:07]} 6. Qd2 {[%emt 0:00:16]} b6 {[%emt 0:06:05]} 7. O-O-O {[%emt 0:00:39]} Bb7 {[%emt 0:01:25]} 8. f3 {[%emt 0:00:54]} Nd7 {[%emt 0:01:21]} 9. Nh3 {[%emt 0:03:47]} c5 {[%emt 0:04:14]} 10. Ng5 {[%emt 0:02:47]} e6 {[%emt 0:18:00]} 11. f4 {[%emt 0:04:57]} Nh6 {[%emt 0:03:02]} 12. Be2 {[%emt 0:02:38]} Qc7 {[%emt 0:01:46]} 13. d5 {[%emt 0:01:36]} e5 {[%emt 0:02:33]} 14. f5 {[%emt 0:04:07]} gxf5 {[%emt 0:13:27]} 15. Bxh5 {[%emt 0:01:34]} O-O-O {[%emt 0:04:59]} 16. Bxf7 {[%emt 0:13:51]} f4 {[%emt 0:03:07]} 17. Bf2 {[%emt 0:00:40]} Nf8 {[%emt 0:02:15]} 18. Bh5 {[%emt 0:04:02]} b5 {[%emt 0:03:38]} 19. g3 {[%emt 0:01:01]} Kb8 {[%emt 0:02:06]} 20. Ne2 {[%emt 0:17:36]} fxg3 {[%emt 0:02:07]} 21. Nxg3 {[%emt 0:00:06]} Bc8 {[%emt 0:00:16]} 22. Qe2 {[%emt 0:00:27]} Nh7 {[%emt 0:03:30]} 23. Be3 {[%emt 0:00:21]} Nf6 {[%emt 0:00:21]} 24. Bf3 {[%emt 0:02:26]} Nhg4 {[%emt 0:06:38]} 25. Bd2 {[%emt 0:00:27]} Nh6 {[%emt 0:02:20]} 26. Rdf1 {[%emt 0:00:34]} c4 {[%emt 0:00:29]} 27. Qe1 {[%emt 0:02:06]} Rdf8 {[%emt 0:03:50]} 28. Bg2 {[%emt 0:02:36]} Qe7 {[%emt 0:04:37]} 29. Nf5 {[%emt 0:04:56]} Nxf5 {[%emt 0:01:41]} 30. exf5 {[%emt 0:00:03]} Bh6 {[%emt 0:02:53]} 31. Ne6 {[%emt 0:03:50]} Bxd2+ {[%emt 0:00:33]} 32. Qxd2 {[%emt 0:00:04]} Rfg8 {[%emt 0:00:14]} 33. Qf2 {[%emt 0:02:15]} Bb7 {[%emt 0:00:10]} 34. Rd1 {[%emt 0:04:20]} Ng4 {[%emt 0:03:31]} 35. Qb6 {[%emt 0:02:03]} Nf6 {[%emt 0:00:39]} 36. Bf3 {[%emt 0:06:07]} Rc8 {[%emt 0:00:31]} 37. Rdg1 {[%emt 0:00:45]} Nd7 {[%emt 0:00:09]} 38. Qf2 {[%emt 0:01:19]} Nc5 {[%emt 0:00:37]} 39. Nxc5 {[%emt 0:01:15]} Rxc5 {[%emt 0:00:05]} 40. Be4 {[%emt 0:00:16]} Rcc8 {[%emt 0:02:42]} 41. f6 {[%emt 0:32:04]} Qc7 {[%emt 0:30:05]} 42. Rg7 {[%emt 0:00:00]} Qa5 {[%emt 0:00:00]} 43. c3 {[%emt 0:00:00]} b4 {[%emt 0:00:00]} 44. Rh3 {[%emt 0:00:00]} Qb5 {[%emt 0:00:00]} 45. cxb4 {[%emt 0:00:00]} Qxb4 {[%emt 0:00:00]} 46. Rc3 {[%emt 0:00:00]} Qa5 {[%emt 0:00:00]} 47. a3 {[%emt 0:00:00]} Qd8 {[%emt 0:00:00]} 48. Kb1 {[%emt 0:00:00]} Rf8 {[%emt 0:00:00]} 49. Rf3 {[%emt 0:00:00]} c3 {[%emt 0:00:00]} 50. bxc3 {[%emt 0:00:00]} Ka8 {[%emt 0:00:00]} 51. Ka2 {[%emt 0:02:26]} Qa5 {[%emt 0:00:00]} 52. Qb2 {[%emt 0:01:25]} Bxd5+ {[%emt 0:00:00]} 53. Bxd5+ {[%emt 0:01:29]} Qxd5+ {[%emt 0:00:00]} 54. Qb3 {[%emt 0:05:33]} Qxf3 {[%emt 0:00:00]} 55. Qb6 {[%emt 0:00:04]} Qe2+ {[%emt 0:00:00]} 56. Kb1 {[%emt 0:01:00]} Qd3+ {[%emt 0:00:00]} 57. Ka2 {[%emt 0:01:06]} Qc2+ {[%emt 0:00:00]} 0-1

[Event "Serbian League Women 2024"]
[Site "Bajina Basta"]
[Date "2024.10.01"]
[Round "5.20"]
[White "Maksimovic, Masa"]
[Black "Petrovic, Marija"]
[Result "1/2-1/2"]
[ECO "C40"]
[WhiteElo "2093"]
[BlackElo "1898"]
[Annotator "RC"]
[PlyCount "76"]
[EventDate "2024.09.26"]
[EventType "team-tourn"]
[EventCountry "SRB"]
[SourceTitle "playchess.com"]
[Source "ChessBase"]
[SourceQuality "1"]
[TimeControl "40/5400+30:1800+30"]

1. e4 {[%emt 0:00:04]} e5 {[%emt 0:00:15]} 2. Nf3 {[%emt 0:00:09]} Qe7 {[%emt 0:00:06]} 3. Bc4 {[%emt 0:00:39]} d6 {[%emt 0:00:11]} 4. Nc3 {[%emt 0:00:25]} c6 {[%emt 0:00:07]} 5. a4 {[%emt 0:01:00]} Nf6 {[%emt 0:00:12]} 6. h3 {[%emt 0:04:28]} h6 {[%emt 0:04:58]} 7. O-O {[%emt 0:04:16]} g6 {[%emt 0:00:42]} 8. d4 {[%emt 0:01:23]} Bg7 {[%emt 0:00:08]} 9. dxe5 {[%emt 0:03:35]} dxe5 {[%emt 0:00:09]} 10. b3 {[%emt 0:00:23]} O-O {[%emt 0:03:00]} 11. Ba3 {[%emt 0:03:25]} c5 {[%emt 0:00:07]} 12. Nd5 {[%emt 0:00:14]} Nxd5 {[%emt 0:02:00]} 13. Bxd5 {[%emt 0:00:05]} Na6 {[%emt 0:02:38]} 14. Qe2 {[%emt 0:06:34]} Rb8 {[%emt 0:00:45]} 15. c3 {[%emt 0:01:18]} b6 {[%emt 0:04:22]} 16. Bc4 {[%emt 0:20:29]} Nc7 {[%emt 0:00:16]} 17. b4 {[%emt 0:00:05]} Be6 {[%emt 0:05:27]} 18. bxc5 {[%emt 0:06:52]} bxc5 {[%emt 0:00:08]} 19. Bxe6 {[%emt 0:00:12]} Nxe6 {[%emt 0:00:09]} 20. Qc4 {[%emt 0:00:06]} Rfd8 {[%emt 0:01:35]} 21. Rfd1 {[%emt 0:00:48]} Rxd1+ {[%emt 0:00:56]} 22. Rxd1 {[%emt 0:00:05]} Qc7 {[%emt 0:02:38]} 23. Kh2 {[%emt 0:05:50]} Qb6 {[%emt 0:00:58]} 24. Nd2 {[%emt 0:08:56]} Qd6 {[%emt 0:02:54]} 25. Qd5 {[%emt 0:05:30]} Qc7 {[%emt 0:05:02]} 26. Nf1 {[%emt 0:07:11]} Qb6 {[%emt 0:20:17]} 27. Ne3 {[%emt 0:00:45]} Qb3 {[%emt 0:01:22]} 28. Bxc5 {[%emt 0:03:31]} Qxa4 {[%emt 0:00:18]} 29. Be7 {[%emt 0:00:33]} Nf4 {[%emt 0:02:20]} 30. Qc4 {[%emt 0:06:19]} Qxc4 {[%emt 0:01:08]} 31. Nxc4 {[%emt 0:00:04]} Rc8 {[%emt 0:00:11]} 32. Rd8+ {[%emt 0:01:54]} Rxd8 {[%emt 0:00:25]} 33. Bxd8 {[%emt 0:00:06]} Nd3 {[%emt 0:01:20]} 34. f3 {[%emt 0:00:57]} Bf8 {[%emt 0:00:18]} 35. Bf6 {[%emt 0:06:00]} Bg7 {[%emt 0:02:34]} 36. Be7 {[%emt 0:01:21]} Bf8 {[%emt 0:03:16]} 37. Bf6 {[%emt 0:00:15]} Bg7 {[%emt 0:00:07]} 38. Be7 {[%emt 0:02:27]} Bf8 {[%emt 0:00:09]} 1/2-1/2